bitfinex/quotes_BTCUSD_20250213
["timestamp","ask_amount","ask_price","bid_price","bid_amount"]
[1739406563567,0.1534395,97826.0,97825.0,1.37922965]
[1739406563833,0.1534395,97826.0,97825.0,1.33426165]
[1739406564062,0.1534395,97826.0,97825.0,1.28193965]
[1739406566556,0.1534395,97826.0,97825.0,1.18538865]
[1739406571089,0.0001065,97826.0,97825.0,1.18538865]
[1739406571814,0.1534395,97826.0,97825.0,1.18538865]
[1739406572164,0.0001065,97826.0,97825.0,1.18538865]
[1739406572677,0.1534395,97826.0,97825.0,1.18538865]
[1739406573464,0.1534395,97826.0,97825.0,1.21733702]
[1739406573668,0.1534395,97826.0,97825.0,1.18538865]
[1739406574487,0.1534395,97826.0,97825.0,0.63562365]
[1739406575154,0.1534395,97826.0,97825.0,1.37922965]
[1739406575291,0.1534395,97826.0,97825.0,0.63562365]
[1739406575491,0.1534395,97826.0,97825.0,1.37922965]
[1739406579392,0.1534395,97826.0,97825.0,1.28482865]
[1739406580173,0.2323395,97826.0,97825.0,0.90729365]
[1739406580374,0.2323395,97826.0,97825.0,0.53312]
[1739406581720,0.2323395,97826.0,97825.0,0.51812]
[1739406581920,0.2323395,97826.0,97825.0,0.53312]
[1739406582383,0.2323395,97826.0,97825.0,0.52612]
[1739406582745,0.2323395,97826.0,97825.0,0.53312]
[1739406582964,0.58482374,97826.0,97825.0,0.53312]
[1739406600243,0.58482374,97826.0,97825.0,0.512675]
[1739406600473,0.58482374,97826.0,97825.0,0.430895]
[1739406602486,0.50592374,97826.0,97825.0,0.430895]
[1739406602694,0.50592374,97826.0,97825.0,0.426895]
[1739406602894,0.50592374,97826.0,97825.0,0.419895]
[1739406603210,0.50592374,97826.0,97825.0,0.408895]
[1739406603868,0.50592374,97826.0,97825.0,0.413895]
[1739406604302,0.50592374,97826.0,97825.0,0.51139865]
[1739406604782,0.50592374,97826.0,97825.0,0.39445]
[1739406604999,0.50592374,97826.0,97825.0,0.27178]
[1739406605183,0.58332374,97826.0,97825.0,0.27178]
[1739406605975,0.58332374,97826.0,97825.0,0.23089]
[1739406606522,0.58332374,97826.0,97825.0,0.22089]
[1739406606926,0.58332374,97826.0,97825.0,0.22389]
[1739406607138,0.58332374,97826.0,97825.0,0.22089]
[1739406607431,0.58332374,97826.0,97825.0,0.22389]
[1739406607604,0.58332374,97826.0,97825.0,0.22789]
[1739406607800,0.58332374,97826.0,97825.0,0.22489]
[1739406608033,0.50592374,97826.0,97825.0,0.22489]
[1739406608202,0.50592374,97826.0,97825.0,0.22989]
[1739406609938,0.50592374,97826.0,97825.0,0.3326173]
[1739406610992,0.50592374,97826.0,97825.0,0.3276173]
[1739406611378,0.50592374,97826.0,97825.0,0.3326173]
[1739406611788,0.3034395,97826.0,97825.0,0.3326173]
[1739406612376,0.3034395,97826.0,97825.0,0.3286173]
[1739406612689,0.3034395,97826.0,97825.0,0.3326173]
[1739406630402,0.1534395,97826.0,97825.0,0.9651973]
[1739406631224,0.1534395,97826.0,97825.0,0.9601973]
[1739406631419,0.1534395,97826.0,97825.0,0.9561973]
[1739406631558,0.1534395,97826.0,97825.0,0.9661973]
[1739406631759,0.1534395,97826.0,97825.0,0.9721973]
[1739406633760,0.1534395,97826.0,97825.0,1.0727973]
[1739406636817,0.1534395,97826.0,97825.0,1.0627973]
[1739406637222,0.1534395,97826.0,97825.0,1.0727973]
[1739406637652,0.1534395,97826.0,97825.0,1.0627973]
[1739406637845,0.1534395,97826.0,97825.0,1.0567973]
[1739406637999,0.1534395,97826.0,97825.0,1.0697973]
[1739406638412,0.1534395,97826.0,97825.0,1.0767973]
[1739406639975,0.1534395,97826.0,97825.0,0.4442173]
[1739406640447,0.1534395,97826.0,97825.0,1.1878233]
[1739406642882,0.0001065,97826.0,97825.0,1.1878233]
[1739406643306,0.1534395,97826.0,97825.0,1.1878233]
[1739406644662,0.1534395,97826.0,97825.0,1.1808233]
[1739406644944,0.1534395,97826.0,97825.0,1.1748233]
[1739406646059,0.1534395,97826.0,97825.0,1.1898233]
[1739406646620,0.1534395,97826.0,97825.0,1.1748233]
[1739406647527,0.1534395,97826.0,97825.0,1.1898233]
[1739406648788,0.1534395,97826.0,97825.0,1.1668233]
[1739406652907,0.0001065,97826.0,97825.0,1.1668233]
[1739406653113,0.1534395,97826.0,97825.0,1.1668233]
[1739406654735,0.204432,97832.0,97825.0,1.1668233]
[1739406654942,0.204432,97832.0,97827.0,0.10250365]
[1739406655121,0.15333,97828.0,97827.0,0.90384365]
[1739406655483,0.15333,97828.0,97827.0,1.64744965]
[1739406656876,0.15333,97828.0,97827.0,1.66244965]
[1739406657165,0.15333,97828.0,97827.0,1.66944965]
[1739406657290,0.15333,97828.0,97827.0,1.66244965]
[1739406657655,0.15333,97828.0,97827.0,1.66944965]
[1739406660367,0.15333,97828.0,97827.0,0.92584365]
[1739406660588,0.15333,97828.0,97827.0,1.66944965]
[1739406663183,0.16771368,97829.0,97827.0,1.66944965]
[1739406663410,0.16771268,97829.0,97828.0,0.92630965]
[1739406663753,0.16771268,97829.0,97828.0,1.72763965]
[1739406664183,0.01438468,97829.0,97828.0,1.72763965]
[1739406664611,0.02004993,97840.0,97829.0,0.023]
[1739406664783,0.153316,97837.0,97836.0,0.10250365]
[1739406664983,0.153316,97837.0,97836.0,0.90379365]
[1739406665196,0.153316,97837.0,97836.0,3.14739965]
[1739406665612,0.153316,97837.0,97836.0,1.64739965]
[1739406666023,0.153316,97837.0,97836.0,1.66239965]
[1739406667215,0.153316,97837.0,97836.0,2.69324474]
[1739406671165,0.153316,97837.0,97836.0,1.94963874]
[1739406671383,0.153316,97837.0,97836.0,2.69324474]
[1739406674222,0.201316,97837.0,97836.0,1.48471865]
[1739406674422,0.201316,97837.0,97836.0,1.32105665]
[1739406674703,0.201316,97837.0,97836.0,1.30516265]
[1739406675333,0.201316,97837.0,97836.0,0.92579365]
[1739406678174,0.201316,97837.0,97836.0,1.16964565]
[1739406680932,0.201316,97837.0,97836.0,1.15540265]
[1739406681947,0.201316,97837.0,97836.0,1.25540265]
[1739406683134,0.2014225,97837.0,97836.0,1.17314765]
[1739406688199,0.2014225,97837.0,97836.0,1.02579365]
[1739406688369,0.2014225,97837.0,97836.0,1.65414165]
[1739406695142,0.2014225,97837.0,97836.0,1.75414165]
[1739406696156,0.1534225,97837.0,97836.0,1.75414165]
[1739406696365,0.1534225,97837.0,97836.0,1.83284165]
[1739406706048,0.1534225,97837.0,97836.0,1.81784165]
[1739406706279,0.1534225,97837.0,97836.0,1.81084165]
[1739406706640,0.1534225,97837.0,97836.0,1.83284165]
[1739406707722,0.1534225,97837.0,97836.0,1.75414165]
[1739406709115,0.1534225,97837.0,97836.0,1.12579365]
[1739406709315,0.1534225,97837.0,97836.0,1.86939965]
[1739406713201,0.1534225,97837.0,97836.0,1.85439965]
[1739406713405,0.1534225,97837.0,97836.0,1.86939965]
[1739406713902,0.1534225,97837.0,97836.0,1.86239965]
[1739406714267,0.1534225,97837.0,97836.0,1.86939965]
[1739406715159,0.1534225,97837.0,97836.0,1.76939965]
[1739406715798,0.1534225,97837.0,97836.0,1.68039565]
[1739406715799,0.2003225,97837.0,97836.0,1.68039565]
[1739406716000,0.2003225,97837.0,97836.0,1.59605865]
[1739406716405,0.2003225,97837.0,97836.0,1.37718465]
[1739406717214,0.2003225,97837.0,97836.0,1.35518465]
[1739406717477,0.2003225,97837.0,97836.0,1.37718465]
[1739406717691,0.0001065,97837.0,97836.0,1.37718465]
[1739406717902,0.1534225,97837.0,97836.0,1.37718465]
[1739406718083,0.1534225,97837.0,97836.0,2.90907558]
[1739406718287,0.1534225,97837.0,97836.0,2.87718465]
[1739406718901,0.1534225,97837.0,97836.0,1.37718465]
[1739406721658,0.1534225,97837.0,97836.0,1.01079365]
[1739406721859,0.1534225,97837.0,97836.0,1.75439965]
[1739406722057,0.1534225,97837.0,97836.0,1.76939965]
[1739406722383,0.1534225,97837.0,97836.0,1.76239965]
[1739406722536,0.1534225,97837.0,97836.0,1.76939965]
[1739406722942,0.1534225,97837.0,97836.0,3.26939965]
[1739406725107,0.1534225,97837.0,97836.0,1.76939965]
[1739406725306,0.0001065,97837.0,97836.0,1.76939965]
[1739406725511,0.1534225,97837.0,97836.0,1.76939965]
[1739406725711,0.0001065,97837.0,97836.0,1.80129287]
[1739406725917,0.1534225,97837.0,97836.0,1.80129287]
[1739406728173,0.0001065,97837.0,97836.0,1.80129287]
[1739406728386,0.1534225,97837.0,97836.0,1.80129287]
[1739406728600,0.0001065,97837.0,97836.0,1.97760987]
[1739406728803,0.1534225,97837.0,97836.0,1.82429287]
[1739406729237,0.0001065,97837.0,97836.0,1.82429287]
[1739406729738,0.1534225,97837.0,97836.0,1.80229287]
[1739406729979,0.1534225,97837.0,97836.0,1.81729287]
[1739406730180,0.1534225,97837.0,97836.0,1.82429287]
[1739406730794,0.1534225,97837.0,97836.0,3.32429287]
[1739406731983,0.0001065,97837.0,97836.0,3.32429287]
[1739406732859,0.0001065,97837.0,97836.0,3.55670987]
[1739406733252,0.0001065,97837.0,97836.0,3.40339287]
[1739406734089,0.0001065,97837.0,97836.0,3.55670987]
[1739406734316,0.0001065,97837.0,97836.0,3.40339287]
[1739406736178,0.0001065,97837.0,97836.0,3.55670987]
[1739406736513,0.0001065,97837.0,97836.0,3.40339287]
[1739406736720,0.0001065,97837.0,97836.0,3.73039287]
[1739406738520,0.0001065,97837.0,97836.0,3.88370987]
[1739406738897,0.0001065,97837.0,97836.0,3.86170987]
[1739406739098,0.0001065,97837.0,97836.0,3.87670987]
[1739406739332,0.0001065,97837.0,97836.0,3.88370987]
[1739406739533,0.0001065,97837.0,97836.0,3.73039287]
[1739406741564,0.0001065,97837.0,97836.0,3.88370987]
[1739406743360,0.0001065,97837.0,97836.0,3.73039287]
[1739406746028,0.0001065,97837.0,97836.0,3.72339287]
[1739406746203,0.0001065,97837.0,97836.0,3.73039287]
[1739406746408,0.0001065,97837.0,97836.0,3.71539287]
[1739406746959,0.0001065,97837.0,97836.0,3.73039287]
[1739406747863,0.0001065,97837.0,97836.0,3.88370987]
[1739406751395,0.0001065,97837.0,97836.0,3.14010387]
[1739406751633,0.0001065,97837.0,97836.0,3.88370987]
[1739406756586,0.0001065,97837.0,97836.0,4.04370987]
[1739406762276,0.0001065,97837.0,97836.0,3.30010387]
[1739406762480,0.0001065,97837.0,97836.0,4.04370987]
[1739406762892,0.0001065,97837.0,97836.0,4.05370987]
[1739406766406,0.0001065,97837.0,97836.0,4.60020987]
[1739406771027,0.22472674,97885.0,97864.0,0.3]
[1739406771250,0.22472674,97885.0,97874.0,0.10250365]
[1739406771580,0.22472674,97885.0,97874.0,1.64719965]
[1739406771581,0.43911562,97875.0,97874.0,1.64719965]
[1739406771787,0.37388942,97875.0,97874.0,1.64719965]
[1739406772429,0.37388942,97875.0,97874.0,1.65419965]
[1739406773012,0.44958942,97875.0,97874.0,1.65419965]
[1739406773345,0.44958942,97875.0,97874.0,1.66919965]
[1739406774094,0.49538942,97875.0,97874.0,1.66919965]
[1739406779065,0.274756,97875.0,97874.0,1.66919965]
[1739406779272,0.199056,97875.0,97874.0,1.66919965]
[1739406779635,0.0458,97875.0,97874.0,1.66919965]
[1739406779932,0.204321,97885.0,97874.0,1.66919965]
[1739406779933,0.0485,97885.0,97875.0,0.023]
[1739406780134,0.0485,97885.0,97884.0,0.10250365]
[1739406780373,0.0485,97885.0,97884.0,2.67099474]
[1739406781712,0.0485,97885.0,97884.0,2.67799474]
[1739406781954,0.0485,97885.0,97884.0,4.17099474]
[1739406782330,0.0485,97885.0,97884.0,4.17799474]
[1739406782526,0.0485,97885.0,97884.0,4.17099474]
[1739406782731,0.0485,97885.0,97884.0,3.46538874]
[1739406782942,0.0002,97889.0,97885.0,0.023]
[1739406783114,0.0002,97889.0,97888.0,0.12550365]
[1739406783314,0.0002,97889.0,97888.0,1.67012965]
[1739406784531,0.0002,97889.0,97888.0,1.67712965]
[1739406785564,0.0002,97889.0,97888.0,3.17712965]
[1739406786243,0.0002,97889.0,97888.0,3.19212965]
[1739406788313,0.0003065,97889.0,97888.0,3.19212965]
[1739406791982,0.1535405,97889.0,97888.0,3.19212965]
[1739406792185,0.1535405,97889.0,97888.0,1.66912965]
[1739406792386,0.1995405,97889.0,97888.0,1.66912965]
[1739406792593,0.1995405,97889.0,97888.0,1.27118765]
[1739406792987,0.2767405,97889.0,97888.0,1.27118765]
[1739406793610,0.2767405,97889.0,97888.0,1.07661838]
[1739406794309,0.2767405,97889.0,97888.0,1.06861838]
[1739406794649,0.29759989,97889.0,97888.0,1.07661838]
[1739406794851,0.29759989,97889.0,97888.0,1.08361838]
[1739406795038,0.29759989,97889.0,97888.0,1.06861838]
[1739406795436,0.29759989,97889.0,97888.0,1.08361838]
[1739406798290,0.29759989,97889.0,97888.0,0.91106838]
[1739406798494,0.29759989,97889.0,97888.0,1.57591938]
[1739406799216,0.29759989,97889.0,97888.0,1.56112838]
[1739406799595,0.29759989,97889.0,97888.0,1.16727938]
[1739406799801,0.29759989,97889.0,97888.0,1.13708938]
[1739406800463,0.29759989,97889.0,97888.0,1.13731303]
[1739406800704,0.29759989,97889.0,97888.0,1.11406303]
[1739406800911,0.29759989,97889.0,97888.0,1.05855303]
[1739406801111,0.29759989,97889.0,97888.0,0.91129203]
[1739406801263,0.29759989,97889.0,97888.0,0.89629203]
[1739406801469,0.29759989,97889.0,97888.0,0.91129203]
[1739406801665,0.29759989,97889.0,97888.0,0.90429203]
[1739406801866,0.29759989,97889.0,97888.0,0.88929203]
[1739406802185,0.29759989,97889.0,97888.0,0.89929203]
[1739406802977,0.29759989,97889.0,97888.0,0.90629203]
[1739406803384,0.29759989,97889.0,97888.0,0.88929203]
[1739406803642,0.29759989,97889.0,97888.0,0.90729203]
[1739406810831,0.29759989,97889.0,97888.0,0.89529203]
[1739406811104,0.29759989,97889.0,97888.0,0.90729203]
[1739406811593,0.29759989,97889.0,97888.0,0.90129203]
[1739406811836,0.29759989,97889.0,97888.0,0.90729203]
[1739406814307,0.29759989,97889.0,97888.0,0.90729203]
[1739406815234,0.29759989,97889.0,97888.0,0.90129203]
[1739406815361,0.29759989,97889.0,97888.0,0.90829203]
[1739406816393,0.29759989,97889.0,97888.0,0.89629203]
[1739406816595,0.29759989,97889.0,97888.0,0.91129203]
[1739406816797,0.29759989,97889.0,97888.0,0.90429203]
[1739406817005,0.29759989,97889.0,97888.0,0.89629203]
[1739406817383,0.29759989,97889.0,97888.0,0.90429203]
[1739406817799,0.29759989,97889.0,97888.0,0.91129203]
[1739406817976,0.29759989,97889.0,97888.0,0.88929203]
[1739406818129,0.29759989,97889.0,97888.0,0.91129203]
[1739406818482,0.29759989,97889.0,97888.0,0.90429203]
[1739406818805,0.29759989,97889.0,97888.0,0.91129203]
[1739406819436,0.29759989,97889.0,97888.0,0.89629203]
[1739406819735,0.29759989,97889.0,97888.0,0.90929203]
[1739406820077,0.29759989,97889.0,97888.0,0.90229203]
[1739406820497,0.29759989,97889.0,97888.0,0.88929203]
[1739406820665,0.29759989,97889.0,97888.0,0.90229203]
[1739406820867,0.29759989,97889.0,97888.0,0.90929203]
[1739406821332,0.29759989,97889.0,97888.0,0.89629203]
[1739406821541,0.29759989,97889.0,97888.0,0.88929203]
[1739406821690,0.29759989,97889.0,97888.0,0.89629203]
[1739406822535,0.29759989,97889.0,97888.0,0.91029203]
[1739406824994,0.29759989,97889.0,97888.0,0.90329203]
[1739406825788,0.29759989,97889.0,97888.0,0.88929203]
[1739406826133,0.29759989,97889.0,97888.0,0.90329203]
[1739406826897,0.29759989,97889.0,97888.0,0.91029203]
[1739406834909,0.22039989,97889.0,97888.0,0.91029203]
[1739406838681,0.22039989,97889.0,97888.0,0.82224365]
[1739406839499,0.22039989,97889.0,97888.0,0.78187921]
[1739406850879,0.22039989,97889.0,97888.0,0.76787921]
[1739406851331,0.22039989,97889.0,97888.0,0.78187921]
[1739406852135,0.22039989,97889.0,97888.0,0.77487921]
[1739406852437,0.22039989,97889.0,97888.0,0.78187921]
[1739406853467,0.1501066,97892.0,97888.0,0.78187921]
[1739406854140,0.153234,97889.0,97888.0,0.78187921]
[1739406854277,0.153234,97889.0,97888.0,0.76787921]
[1739406854649,0.153234,97889.0,97888.0,0.77987921]
[1739406855098,0.153234,97889.0,97888.0,0.76087921]
[1739406855470,0.17370294,97889.0,97888.0,0.78087921]
[1739406855846,0.17370294,97889.0,97888.0,0.77487921]
[1739406856050,0.17370294,97889.0,97888.0,0.78187921]
[1739406856255,0.17370294,97889.0,97888.0,0.77487921]
[1739406856713,0.17370294,97889.0,97888.0,0.76687921]
[1739406856886,0.17370294,97889.0,97888.0,0.76087921]
[1739406857063,0.17370294,97889.0,97888.0,0.77187921]
[1739406857245,0.17370294,97889.0,97888.0,0.77887921]
[1739406857443,0.17370294,97889.0,97888.0,0.76787921]
[1739406857893,0.17370294,97889.0,97888.0,0.78187921]
[1739406858316,0.17370294,97889.0,97888.0,0.77487921]
[1739406858692,0.17370294,97889.0,97888.0,0.78087921]
[1739406858889,0.17370294,97889.0,97888.0,0.77487921]
[1739406859450,0.17370294,97889.0,97888.0,0.78187921]
[1739406868897,0.17370294,97889.0,97888.0,0.76787921]
[1739406869123,0.17370294,97889.0,97888.0,0.76087921]
[1739406869332,0.17370294,97889.0,97888.0,0.78187921]
[1739406870109,0.17370294,97889.0,97888.0,1.50448521]
[1739406870239,0.17370294,97889.0,97888.0,1.51948521]
[1739406870448,0.17370294,97889.0,97888.0,1.52648521]
[1739406871422,0.17370294,97889.0,97888.0,0.78287921]
[1739406872958,0.17370294,97889.0,97888.0,1.13879021]
[1739406877902,0.17370294,97889.0,97888.0,1.12379021]
[1739406878362,0.17370294,97889.0,97888.0,1.13879021]
[1739406878795,0.17370294,97889.0,97888.0,1.13179021]
[1739406879202,0.17370294,97889.0,97888.0,1.13879021]
[1739406879860,0.17370294,97889.0,97888.0,1.06457921]
[1739406880539,0.17370294,97889.0,97888.0,1.05757921]
[1739406880945,0.17370294,97889.0,97888.0,1.04957921]
[1739406881353,0.17370294,97889.0,97888.0,1.06457921]
[1739406882785,0.17370294,97889.0,97888.0,0.78287921]
[1739406883191,0.17370294,97889.0,97888.0,0.96630521]
[1739406884719,0.17370294,97889.0,97888.0,1.06880886]
[1739406884896,0.17370294,97889.0,97888.0,1.14680886]
[1739406885395,0.17370294,97889.0,97888.0,1.16592043]
[1739406888764,0.17370294,97889.0,97888.0,1.15092043]
[1739406888961,0.17370294,97889.0,97888.0,1.14392043]
[1739406889191,0.17370294,97889.0,97888.0,1.16592043]
[1739406889524,0.17370294,97889.0,97888.0,1.14392043]
[1739406889868,0.17370294,97889.0,97888.0,1.13180886]
[1739406891071,0.17370294,97889.0,97888.0,1.14680886]
[1739406895450,0.17370294,97889.0,97888.0,1.06880886]
[1739406897323,0.17370294,97889.0,97888.0,1.62898886]
[1739406897858,0.0001065,97891.0,97888.0,1.62898886]
[1739406897988,0.153233,97890.0,97889.0,0.84610965]
[1739406898200,0.153233,97890.0,97889.0,1.68748965]
[1739406899392,0.17373733,97890.0,97889.0,1.69448965]
[1739406900010,0.17373733,97890.0,97889.0,1.77488965]
[1739406900399,0.17373733,97890.0,97889.0,1.78988965]
[1739406901067,0.17373733,97890.0,97889.0,1.77488965]
[1739406901255,0.17373733,97890.0,97889.0,1.78988965]
[1739406902012,0.17373733,97890.0,97889.0,1.78288965]
[1739406902483,0.17373733,97890.0,97889.0,1.78988965]
[1739406903303,0.02050433,97890.0,97889.0,1.78988965]
[1739406903553,0.02050433,97890.0,97889.0,1.83918965]
[1739406903554,0.17373733,97890.0,97889.0,1.83918965]
[1739406904125,0.02050433,97890.0,97889.0,1.83918965]
[1739406904326,0.0001065,97891.0,97890.0,0.0772]
[1739406904524,0.0001065,97891.0,97890.0,3.26467965]
[1739406904761,0.1533375,97891.0,97890.0,3.26467965]
[1739406905436,0.1533375,97891.0,97890.0,3.27167965]
[1739406906977,0.1533375,97891.0,97890.0,3.28667965]
[1739406907378,0.1533375,97891.0,97890.0,1.78667965]
[1739406910486,0.1533375,97891.0,97890.0,0.96587365]
[1739406910693,0.1533375,97891.0,97890.0,1.61880465]
[1739406911104,0.1533375,97891.0,97890.0,1.23126765]
[1739406911501,0.1533375,97891.0,97890.0,1.12032165]
[1739406912332,0.1533375,97891.0,97890.0,1.11332165]
[1739406912534,0.1533375,97891.0,97890.0,1.12032165]
[1739406913134,0.1533375,97891.0,97890.0,1.10532165]
[1739406913351,0.1533375,97891.0,97890.0,1.07232165]
[1739406913526,0.1533375,97891.0,97890.0,1.08232165]
[1739406913926,0.1533375,97891.0,97890.0,1.07232165]
[1739406914104,0.1533375,97891.0,97890.0,1.08732165]
[1739406918477,0.1533375,97891.0,97890.0,0.96587365]
[1739406918697,0.1533375,97891.0,97890.0,1.07951765]
[1739406921205,0.1533375,97891.0,97890.0,0.96587365]
[1739406921372,0.1533375,97891.0,97890.0,1.29458465]
[1739406921706,0.1533375,97891.0,97890.0,1.25739465]
[1739406927966,0.1533375,97891.0,97890.0,1.2576183]
[1739406930010,0.1533375,97891.0,97890.0,1.28814193]
[1739406932102,0.15698225,97891.0,97890.0,1.28814193]
[1739406933524,0.15698225,97891.0,97890.0,1.19820693]
[1739406933705,0.15698225,97891.0,97890.0,1.14674593]
[1739406933907,0.1533375,97891.0,97890.0,1.14674593]
[1739406934435,0.1533375,97891.0,97890.0,1.0763123]
[1739406935395,0.15700263,97891.0,97890.0,1.0763123]
[1739406940720,0.1533375,97891.0,97890.0,1.0763123]
[1739406941103,0.15700486,97891.0,97890.0,1.0763123]
[1739406942889,0.15700486,97891.0,97890.0,0.9660973]
[1739406943253,0.15700486,97891.0,97890.0,1.5563333]
[1739406943595,0.1533375,97891.0,97890.0,1.5563333]
[1739406956075,0.1533375,97891.0,97890.0,1.4216373]
[1739406956464,0.1533375,97891.0,97890.0,1.40091454]
[1739406961037,0.1533375,97891.0,97890.0,1.19874254]
[1739406966117,0.1533375,97891.0,97890.0,0.94537454]
[1739406966323,0.1533375,97891.0,97890.0,1.66243954]
[1739406966890,0.1533375,97891.0,97890.0,1.40610554]
[1739406969452,0.1533375,97891.0,97890.0,1.35219154]
[1739406969696,0.1533375,97891.0,97890.0,0.78343133]
[1739406969697,0.2785375,97891.0,97890.0,0.78343133]
[1739406969898,0.28220108,97891.0,97890.0,0.74194368]
[1739406970404,0.43220108,97891.0,97890.0,0.64152768]
[1739406970620,0.43220108,97891.0,97890.0,0.47114721]
[1739406970836,0.43220108,97891.0,97890.0,0.23334721]
[1739406971233,0.43320108,97891.0,97890.0,0.18961621]
[1739406971460,0.43320108,97891.0,97890.0,2.1e-07]
[1739406971895,0.27997008,97891.0,97889.0,0.00022365]
[1739406972115,0.153233,97890.0,97889.0,0.00022365]
[1739406972317,0.1572557,97890.0,97889.0,0.00022365]
[1739406972488,0.27654717,97881.0,97866.0,0.0823]
[1739406972705,0.153261,97872.0,97866.0,0.0823]
[1739406972907,0.15690211,97872.0,97866.0,0.0823]
[1739406973067,0.15690211,97872.0,97871.0,0.51109365]
[1739406973511,0.153261,97872.0,97871.0,0.51109365]
[1739406974088,0.15690211,97872.0,97871.0,1.25469965]
[1739406974632,0.15690211,97872.0,97871.0,1.3632033]
[1739406976567,0.17883825,97872.0,97871.0,1.3672033]
[1739406978107,0.17519714,97872.0,97871.0,1.3672033]
[1739406979525,0.17419714,97872.0,97871.0,1.3632033]
[1739406979708,0.17419714,97872.0,97871.0,1.3572033]
[1739406979935,0.17519714,97872.0,97871.0,1.3622033]
[1739406984353,0.17519714,97872.0,97871.0,1.2110233]
[1739406984539,0.17419714,97872.0,97871.0,1.2060233]
[1739406984747,0.17519714,97872.0,97871.0,1.1219873]
[1739406985127,0.17519714,97872.0,97871.0,1.0656763]
[1739406985353,0.17983626,97872.0,97871.0,1.0696763]
[1739406985890,0.17983626,97872.0,97871.0,1.0746763]
[1739406986556,0.17983626,97872.0,97871.0,1.0696763]
[1739406986708,0.17983626,97872.0,97871.0,1.0746763]
[1739406988543,0.17883626,97872.0,97871.0,1.0746763]
[1739406988752,0.17783626,97872.0,97871.0,1.0706763]
[1739406989116,0.17883626,97872.0,97871.0,1.0696763]
[1739406989321,0.17883626,97872.0,97871.0,1.0746763]
[1739406990743,0.17883626,97872.0,97871.0,1.3662033]
[1739406990893,0.17883626,97872.0,97871.0,1.3558963]
[1739406991094,0.17519714,97872.0,97871.0,1.3558963]
[1739406991512,0.17519714,97872.0,97871.0,1.1708153]
[1739406991902,0.17519714,97872.0,97871.0,0.9557143]
[1739406992111,0.17883626,97872.0,97871.0,0.9557143]
[1739406992536,0.17883626,97872.0,97871.0,0.49965865]
[1739406992708,0.17883626,97872.0,97871.0,0.45878865]
[1739406993275,0.20183626,97872.0,97871.0,0.45878865]
[1739406993481,0.20183626,97872.0,97871.0,0.41291865]
[1739406993730,0.20383626,97872.0,97871.0,0.35161365]
[1739406994514,0.20283626,97872.0,97871.0,0.34761365]
[1739406994912,0.20383626,97872.0,97871.0,0.35161365]
[1739406995679,0.20383626,97872.0,97871.0,0.34860975]
[1739406997833,0.20383626,97872.0,97871.0,0.34883361]
[1739406998036,0.20394286,97872.0,97871.0,0.34883361]
[1739407002159,0.18094286,97872.0,97871.0,0.34883361]
[1739407003145,0.18094286,97872.0,97871.0,0.96924161]
[1739407003350,0.18094286,97872.0,97871.0,0.90663261]
[1739407004129,0.18094286,97872.0,97871.0,0.86721261]
[1739407004487,0.18094286,97872.0,97871.0,0.67969361]
[1739407004670,0.20394286,97872.0,97871.0,0.46449661]
[1739407004875,0.20394286,97872.0,97871.0,0.34883361]
[1739407005310,0.25044286,97872.0,97871.0,0.34883361]
[1739407005475,0.40044286,97872.0,97871.0,0.34883361]
[1739407006334,0.40044286,97872.0,97871.0,0.31689775]
[1739407006746,0.40044286,97872.0,97871.0,0.29277002]
[1739407007081,0.00678071,97872.0,97871.0,0.29277002]
[1739407007449,0.16422438,97872.0,97871.0,0.29277002]
[1739407007583,0.16822438,97872.0,97871.0,0.28877002]
[1739407007924,0.18836344,97872.0,97871.0,0.21078902]
[1739407008150,0.18436344,97872.0,97871.0,0.12208383]
[1739407008301,0.41526344,97872.0,97871.0,0.12208383]
[1739407008502,0.41526344,97872.0,97871.0,0.12608383]
[1739407008686,0.41526344,97872.0,97871.0,0.12208383]
[1739407008952,0.41126344,97872.0,97871.0,0.12608383]
[1739407009153,0.41726344,97872.0,97871.0,0.09808383]
[1739407009455,0.41726344,97872.0,97871.0,0.10208383]
[1739407009840,0.61974768,97872.0,97871.0,0.10208383]
[1739407010046,0.61985428,97872.0,97871.0,0.10208383]
[1739407010429,0.61385428,97872.0,97871.0,0.10208383]
[1739407010786,0.61585428,97872.0,97871.0,0.09808383]
[1739407011192,0.61385428,97872.0,97871.0,0.10308383]
[1739407011512,0.153303,97845.0,97844.0,0.0795]
[1739407011739,0.153303,97845.0,97844.0,0.18200365]
[1739407011887,0.15745325,97845.0,97844.0,0.18200365]
[1739407012093,0.15745325,97845.0,97844.0,0.69301365]
[1739407012304,0.15745325,97845.0,97844.0,1.29599765]
[1739407012733,0.15745325,97845.0,97844.0,1.21175665]
[1739407013039,0.15745325,97845.0,97844.0,1.15928565]
[1739407013582,0.15745325,97845.0,97844.0,2.65928565]
[1739407013796,0.153303,97845.0,97844.0,2.67228565]
[1739407014217,0.154303,97845.0,97844.0,2.67328565]
[1739407014413,0.16692569,97845.0,97844.0,2.66028565]
[1739407014818,0.16692569,97845.0,97844.0,2.67228565]
[1739407015020,0.16592569,97845.0,97844.0,2.67128565]
[1739407015226,0.16592569,97845.0,97844.0,2.65928565]
[1739407015427,0.16692569,97845.0,97844.0,2.65928565]
[1739407015637,0.16592569,97845.0,97844.0,2.65928565]
[1739407015878,0.16692569,97845.0,97844.0,1.15928565]
[1739407016315,0.17107919,97845.0,97844.0,1.15928565]
[1739407016489,0.17107919,97845.0,97844.0,0.51101]
[1739407016670,0.17107919,97845.0,97844.0,0.52401]
[1739407017086,0.17107919,97845.0,97844.0,0.51101]
[1739407017511,0.17107919,97845.0,97844.0,0.64194]
[1739407017717,0.17007919,97845.0,97844.0,0.64194]
[1739407017943,0.17007919,97845.0,97844.0,0.62994]
[1739407018144,0.17107919,97845.0,97844.0,0.51701]
[1739407019608,0.17107919,97845.0,97844.0,0.51201]
[1739407019790,0.17107919,97845.0,97844.0,0.635427]
[1739407019997,0.17207919,97845.0,97844.0,0.635427]
[1739407020236,0.17107919,97845.0,97844.0,0.634427]
[1739407020433,0.17007919,97845.0,97844.0,0.634427]
[1739407020702,0.17207919,97845.0,97844.0,0.51201]
[1739407021313,0.17207919,97845.0,97844.0,1.25583986]
[1739407021519,0.17207919,97845.0,97844.0,1.20034886]
[1739407026215,0.17207919,97845.0,97844.0,1.30285251]
[1739407027099,0.17380512,97845.0,97844.0,1.30285251]
[1739407027508,0.02050212,97845.0,97844.0,1.30285251]
[1739407027741,0.02050212,97845.0,97844.0,1.38265251]
[1739407027947,0.01462269,97845.0,97844.0,1.38265251]
[1739407028150,0.02124593,97845.0,97844.0,1.38265251]
[1739407028325,0.01462269,97845.0,97844.0,1.38265251]
[1739407028536,0.002,97845.0,97844.0,2.4064976]
[1739407028741,0.001,97845.0,97844.0,2.4064976]
[1739407029098,0.001,97845.0,97844.0,2.4144976]
[1739407030086,0.153296,97850.0,97845.0,0.0821]
[1739407030287,0.153296,97850.0,97847.0,0.0821]
[1739407030420,0.01259008,97851.0,97849.0,0.0821]
[1739407030624,0.153294,97851.0,97850.0,0.84610965]